[Event "4NCL Div 1 2024-25"]
[Site "England"]
[Date "2025.01.25"]
[Round "3.30"]
[White "Bezuidenhout, Roland"]
[Black "Fitzsimons, David"]
[Result "0-1"]
[Annotator "TA"]
[ECO "A20"]
[WhiteElo "2285"]
[BlackElo "2317"]
[PlyCount "86"]
[EventDate "2024.11.23"]
[EventType "team-tourn"]
[EventCountry "ENG"]
[SourceTitle "playchess.com"]
[Source "ChessBase"]
[SourceQuality "1"]
[TimeControl "40/6000+30:3000+30"]

{[%evp 11,86,15,20,6,17,28,-15,-33,-36,-45,-34,-50,-37,-77,-31,-69,-55,-58,-34,-36,-29,-77,-32,-33,-32,-32,-34,-38,-27,-40,-32,-39,-28,-41,-35,-25,-32,-24,-11,-25,-11,-57,-1,0,-4,-10,-21,-69,-57,-147,-141,-137,-114,-227,-239,-337,-331,-407,-406,-798,-795,-743,-742,-1618,-1486,-2314,-2206,-1270,-720,-1069,-1026,-5297,-2259,-29983,-29984,-5402,-5297]} 1. c4 {[%emt 0:10:56]} e5 {[%emt 0:10:12]} 2. g3 {[%emt 0:00:11]} c6 {[%emt 0:00:12]} 3. d4 {[%emt 0:00:52]} Bb4+ {[%emt 0:00:15]} 4. Bd2 {[%emt 0:00:35]} Bxd2+ {[%emt 0:00:13]} 5. Qxd2 {[%emt 0:00:28]} d6 {[%emt 0:00:10]} 6. Nc3 {[%emt 0:00:39]} Nf6 {[%emt 0:00:11]} 7. dxe5 {[%emt 0:02:33] A20: English Opening: 1...e5.} dxe5 {[%emt 0:00:11]} 8. Qxd8+ {[%emt 0:00:08]} Kxd8 {[%emt 0:00:07]} 9. e4 $146 {[%emt 0:01:58] The position is equal.} (9. Nf3 Nbd7 10. Bg2 h6 11. Nd2 Kc7 12. b4 Rd8 13. a4 a5 14. b5 Nc5 15. bxc6 bxc6 {0-1 Miezis,N (2557)-Ni,H (2637) Dubai op 14th 2012 (3)}) 9... Nbd7 {[%emt 0:04:46]} 10. Nf3 {[%emt 0:04:09]} Re8 {[%emt 0:00:44]} 11. Bh3 {[%emt 0:10:46]} Kc7 {[%emt 0:01:50]} 12. Bxd7 {[%emt 0:14:33]} Bxd7 {[%emt 0:04:37]} (12... Nxd7 $17 13. Ke2 Nf8) 13. Nd2 {[%emt 0:01:44]} Be6 {[%emt 0:02:02]} 14. Rc1 {[%emt 0:00:43][%cal Oc3d5]} Rad8 {[%emt 0:05:03]} 15. Nd5+ {[%emt 0:02:50]} Kb8 {[%emt 0:03:25]} 16. Ne3 {[%emt 0:13:00]} (16. Nxf6 $11 gxf6 17. Ke2) 16... Ng4 {[%emt 0:14:58] Black is much more active.} 17. Nxg4 {[%emt 0:02:32]} Bxg4 {[%emt 0:00:07]} 18. f3 {[%emt 0:01:03]} Be6 {[%emt 0:00:17]} 19. Ke2 {[%emt 0:03:05]} Rd4 {[%emt 0:01:32]} 20. b3 {[%emt 0:00:58]} f5 {[%emt 0:04:03]} 21. Rhd1 {[%emt 0:05:36]} Red8 {[%emt 0:08:43]} 22. Ke1 {[%emt 0:06:19]} Kc7 {[%emt 0:05:46]} 23. exf5 {[%emt 0:02:45]} Bxf5 {[%emt 0:00:06]} 24. Nf1 {[%emt 0:04:06]} Kb6 {[%emt 0:00:59]} 25. Ne3 {[%emt 0:05:39]} Be6 {[%emt 0:00:40]} 26. Nc2 {[%emt 0:01:05]} (26. Rc2 $11 {might be stronger.}) 26... R4d7 {[%emt 0:03:10]} ({Black should try} 26... Rd3 $15) 27. Rxd7 $11 {[%emt 0:00:21]} Rxd7 {[%emt 0:00:06][%mdl 4096] Endgame KRB-KRN} 28. Ne3 {[%emt 0:05:45]} Kc5 {[%emt 0:00:36]} 29. Rd1 {[%emt 0:02:19]} (29. Rc2 $11) 29... Kb4 $15 {[%emt 0:02:28]} 30. Rxd7 {[%emt 0:00:11]} ({White should play} 30. Rc1 $1 $15) 30... Bxd7 {[%emt 0:00:06] KB-KN} 31. Kd2 {[%emt 0:03:33]} Ka3 $1 {[%emt 0:02:04]} 32. Kc3 {[%emt 0:00:10] [#] Against a5} (32. Kc2 $17 {was necessary.}) 32... a5 $1 $19 {[%emt 0:00:46][%cal Ob7b6]} ({Don't take} 32... Kxa2 33. b4 $17) 33. Nc2+ {[%emt 0:04:18]} Kxa2 {[%emt 0:00:06]} 34. b4 {[%emt 0:00:23] [#]} a4 {[%emt 0:00:47]} 35. h4 {[%emt 0:01:47]} (35. f4 $142 e4 (35... exf4 $2 36. gxf4 b5 37. cxb5 $19) 36. h4) 35... h5 {[%emt 0:01:43]} 36. Ne3 {[%emt 0:00:00]} Kb1 {[%emt 0:00:18]} 37. Nc2 {[%emt 0:00:00]} Bf5 {[%emt 0:00:10]} 38. Na3+ {[%emt 0:00:12]} Ka2 {[%emt 0:00:13]} 39. Nc2 {[%emt 0:00:05]} a3 {[%emt 0:00:29] Strongly threatening ...Bxc2.} 40. c5 {[%emt 0:00:50]} g6 {[%emt 0:00:23]} 41. f4 {[%emt 0:50:15]} e4 {[%emt 0:50:24]} (41... Bxc2 $142 42. Kxc2 e4) 42. Ne3 {[%emt 0:00:00]} Kb1 {[%emt 0:00:00]} 43. Nc4 {[%emt 0:00:00] [#]} e3 $1 {[%emt 0:00:00][%mdl 512] Weighted Error Value: White=0.77/Black=0.35  Mistake:       	White=6     	Black=2      Inaccurate:     	White=4     	Black=1      OK:         	White=9     	Black=9      Best:        	White=1     	Black=1      Strong:       	---       	Black=2} 0-1

[Event "4NCL Div 1 2024-25"]
[Site "England"]
[Date "2025.01.25"]
[Round "3.31"]
[White "Kalaiyalahan, Akshaya"]
[Black "Jarocka, Liwia"]
[Result "1-0"]
[Annotator "TA"]
[ECO "E04"]
[WhiteElo "2130"]
[BlackElo "2267"]
[PlyCount "83"]
[EventDate "2024.11.23"]
[EventType "team-tourn"]
[EventCountry "ENG"]
[SourceTitle "playchess.com"]
[Source "ChessBase"]
[SourceQuality "1"]
[TimeControl "40/6000+30:3000+30"]

{[%evp 20,83,58,84,91,55,66,64,50,45,65,21,21,16,19,-12,0,0,0,0,4,0,0,0,0,0,17,0,0,0,12,0,17,-12,0,0,41,37,38,42,139,137,156,142,140,122,123,126,126,118,121,123,192,192,202,194,392,337,426,287,471,411,29991,29992,29992,29993]} 1. Nf3 {[%emt 0:10:04]} d5 {[%emt 0:10:26]} 2. g3 {[%emt 0:00:08]} c5 {[%emt 0:01:38]} 3. Bg2 {[%emt 0:00:20]} Nf6 {[%emt 0:00:35]} 4. O-O {[%emt 0:00:19]} Nc6 {[%emt 0:00:28]} 5. d4 {[%emt 0:00:15]} e6 {[%emt 0:02:26]} 6. c4 {[%emt 0:00:39]} dxc4 {[%emt 0:01:58]} 7. Qa4 {[%emt 0:00:11]} cxd4 {[%emt 0:03:29]} 8. Nxd4 {[%emt 0:01:08]} Qxd4 {[%emt 0:01:00]} 9. Bxc6+ {[%emt 0:00:21]} Bd7 {[%emt 0:00:17]} 10. Rd1 {[%emt 0:10:03]} Qxd1+ {[%emt 0:06:10] seems to push 10...Bxc6 aside.} 11. Qxd1 {[%emt 0:00:10]} Bxc6 {[%emt 0:00:03] E04: Open Catalan: 5 Nf3.} 12. Bg5 {[%emt 0:13:03]} Ne4 {[%emt 0:16:50]} 13. Be3 {[%emt 0:01:33] A sharp opening} Be7 $146 {[%emt 0:05:55] White is slightly better.} (13... Rd8 14. Qc2 b5 15. a4 a6 16. axb5 axb5 17. Ra6 Bd5 18. Na3 Bc5 19. Bxc5 Nxc5 20. Ra5 Be4 21. Qc1 Nb3 22. Qa1 Nxa1 {0-1 Boldoo,E (2375)-Rosenberg,E (1932) Titled Tuesday intern op 09th Jan Early blitz 2024 (8)}) 14. Qc2 {[%emt 0:03:12]} O-O {[%emt 0:05:25]} 15. Nd2 {[%emt 0:04:26]} Nxd2 {[%emt 0:01:30]} 16. Bxd2 {[%emt 0:00:37]} Rfd8 {[%emt 0:01:07]} 17. Be3 {[%emt 0:21:07] White is weak on the light squares} Bf6 {[%emt 0:01:23]} 18. a4 {[%emt 0:08:06]} Rd5 {[%emt 0:16:55]} 19. f3 {[%emt 0:11:31]} a6 {[%emt 0:07:57]} 20. Qxc4 {[%emt 0:03:26]} Bxb2 {[%emt 0:00:44] This pair of bishops is nice.} 21. Rb1 {[%emt 0:00:19]} Bf6 {[%emt 0:00:25]} 22. Bb6 {[%emt 0:01:32]} Bd8 {[%emt 0:01:47]} 23. Bd4 {[%emt 0:05:13][%mdl 1024] White has compensation.} e5 {[%emt 0:01:54]} 24. Bc3 {[%emt 0:02:08]} Bf6 {[%emt 0:03:20]} 25. Kf2 {[%emt 0:09:08]} Rad8 {[%emt 0:03:11]} 26. Ra1 {[%emt 0:01:33]} Be7 {[%emt 0:00:49]} 27. Ke1 {[%emt 0:01:12]} Kh8 {[%emt 0:01:42]} 28. e4 {[%emt 0:01:14]} Rd3 {[%emt 0:03:39]} 29. Ke2 {[%emt 0:00:23][%cal Oc3a5] Prevents Re3+.} (29. Bxe5 f6 (29... Rxf3 30. Ke2 $16) 30. Bc3 (30. Bc7 R8d4 $15) 30... Rxf3 $16) 29... R3d7 {[%emt 0:01:32]} (29... Bxa4 $14 30. Rxa4 b5 31. Qxd3 (31. Qxf7 Rxc3 32. Ra2 Bc5 $11) 31... Rxd3 (31... bxa4 $2 {loses.} 32. Qc4 $18) 32. Rxa6 Rd8) 30. Qxf7 $16 {[%emt 0:00:45]} Bf6 {[%emt 0:04:17]} 31. Qc4 {[%emt 0:00:27] Active counter play!} Rc8 {[%emt 0:00:16][%cal Oc6b5] ...Bb5! is the strong threat.} 32. Qb3 {[%emt 0:01:09]} b5 {[%emt 0:00:32] [#]} 33. a5 {[%emt 0:00:40]} b4 {[%emt 0:00:25]} 34. Bxb4 {[%emt 0:00:31]} (34. Qxb4 Be7 35. Qb3 Rb7 $19) 34... Bb5+ {[%emt 0:03:39]} 35. Kf2 {[%emt 0:00:04][%cal Be2f2,Bf2g1,Bg1g2][%mdl 32]} Rdc7 {[%emt 0:02:43]} (35... Be7 $16 36. Bxe7 Rd2+ 37. Kg1 Rcc2 38. Qxc2 Rxc2) 36. Rd1 $18 {[%emt 0:00:40]} Bg5 {[%emt 0:00:32]} 37. h4 {[%emt 0:00:41]} Bh6 {[%emt 0:01:10]} (37... Bf6 38. Rd2 Rc4) 38. Kg1 {[%emt 0:00:29]} Bc4 {[%emt 0:00:18]} 39. Qa3 {[%emt 0:00:28]} Rf7 $2 {[%emt 0:00:24]} (39... Be6 {keeps fighting.} 40. Be1 Bg8) 40. Qc3 {[%emt 0:00:30][%cal Oc3c4] And now Qxc4! would win.} Kg8 {[%emt 0:00:54] [#]} (40... g6 $18 41. Bd6 (41. Qxe5+ Bg7 $18) 41... Kg8) 41. Qxc4 $1 {[%emt 0:21:43][%mdl 512]} Be3+ {[%emt 0:20:27]} 42. Kg2 {[%emt 0:00:19] Weighted Error Value: White=0.15 (very precise) /Black=0.41  Mistake:       	---       	Black=5      Inaccurate:     	White=5     	Black=1      OK:         	White=9     	Black=10     Best:        	White=3     	Black=2      Brilliant:      	White=1     	---} 1-0

[Event "4NCL Div 1 2024-25"]
[Site "England"]
[Date "2025.01.25"]
[Round "3.32"]
[White "Banerjee, Supratit"]
[Black "Sygnowski, Tomasz"]
[Result "1-0"]
[Annotator "TA"]
[ECO "C02"]
[WhiteElo "2141"]
[BlackElo "2101"]
[PlyCount "161"]
[EventDate "2024.11.23"]
[EventType "team-tourn"]
[EventCountry "ENG"]
[SourceTitle "playchess.com"]
[Source "ChessBase"]
[SourceQuality "1"]
[TimeControl "40/6000+30:3000+30"]

{[%evp 13,161,-37,76,69,70,85,82,79,81,38,41,-50,-37,-139,-144,-147,-144,-169,-79,-69,-73,-173,-150,-173,-52,-86,96,-22,0,0,0,0,0,-27,-7,-33,-37,-47,-39,-83,0,-65,-8,0,0,0,0,-24,-36,-29,0,-4,78,-58,-47,-58,89,89,89,84,131,148,123,116,116,116,119,112,226,216,272,253,258,262,343,331,453,495,478,460,478,451,417,356,306,26,26,26,26,26,26,26,26,26,26,26,26,26,26,26,26,26,26,26,26,13,26,26,26,20,26,0,26,26,26,26,26,26,26,20,20,13,26,26,26,14,14,14,26,14,26,26,26,26,30,30,862,847,29949,4710,29970,29970,29968,29972,29972,29973,29976,29975,29983,29984]} 1. e4 {[%emt 0:10:04]} e6 {[%emt 0:10:09]} 2. d4 {[%emt 0:00:15]} d5 {[%emt 0:00:08]} 3. e5 {[%emt 0:00:07]} c5 {[%emt 0:00:08]} 4. c3 {[%emt 0:00:06]} Nc6 {[%emt 0:00:37]} 5. Nf3 {[%emt 0:00:22]} Qb6 {[%emt 0:00:49]} 6. Bd3 {[%emt 0:00:19]} Bd7 {[%emt 0:01:28]} 7. O-O {[%emt 0:02:47]} Rc8 {[%emt 0:10:05]} (7... cxd4 $15 {keeps the upper hand.} 8. h3 Nge7) 8. dxc5 $1 $16 {[%emt 0:16:44] C02: French: Advance Variation.} Bxc5 {[%emt 0:00:58]} 9. b4 {[%emt 0:01:26]} Be7 {[%emt 0:01:05]} 10. Re1 {[%emt 0:09:29] White is better.} f6 {[%emt 0:12:12]} 11. exf6 {[%emt 0:23:25]} Nxf6 {[%emt 0:15:12]} 12. Ng5 {[%emt 0:06:47]} (12. Be3 $14 Qc7 13. b5) 12... O-O $146 {[%emt 0:07:23][%cal Of6g4]} (12... Nd8 13. Be3 Qc7 14. Bd4 Qf4 15. Nh3 Qh6 16. Nd2 O-O 17. Nf3 Ng4 18. Ne5 Nxe5 19. Rxe5 {1-0 Gara,A (2360)-Yugina,M (2096) ROM-chT (Women) 2022 (7.10)}) 13. Nxe6 {[%emt 0:07:39] [#]} (13. Bf4 $15) 13... Ng4 $1 $17 {[%emt 0:22:25]} 14. Be3 {[%emt 0:02:37]} (14. Bxh7+ Kxh7) 14... Nxe3 {[%emt 0:01:36]} 15. Qh5 {[%emt 0:01:10] [#]} Rf5 $3 {[%emt 0:08:05][%mdl 512]} 16. Bxf5 {[%emt 0:02:11]} Nxf5 {[%emt 0:00:07]} 17. Nd2 {[%emt 0:02:21]} (17. Qxf5 $17 Nd8 18. Qxd5 Bxe6 (18... Nxe6 $2 19. Qxd7 Rd8 20. Qxe7 $18) 19. Qh5) 17... g6 $19 {[%emt 0:02:33]} 18. Qe2 {[%emt 0:01:41]} Re8 {[%emt 0:01:00]} (18... Bd6 $19 {Threatens to win with ...Re8.} 19. Qd3 Nce7) 19. Nf4 $1 $15 {[%emt 0:02:28]} Bf6 $2 {[%emt 0:06:31]} (19... Bh4 $1 $17 20. Qf3 Ne5 21. Qxd5+ Kh8 22. Rxe5 Qxf2+ 23. Kh1 Qxf4) 20. Qf3 {[%emt 0:01:59]} ({White must play} 20. Qxe8+ $1 $16 Bxe8 21. Nxd5 Bxc3 (21... Qd8 $2 22. Rxe8+ Kf7 23. Rxd8 $18) 22. Nxb6) 20... Nce7 {[%emt 0:00:18]} 21. Nxd5 {[%emt 0:02:46]} Nxd5 {[%emt 0:00:10]} 22. Qxd5+ {[%emt 0:00:10]} Be6 {[%emt 0:00:07]} 23. Qf3 {[%emt 0:00:07]} (23. Nc4 $5 Qc6 (23... Bxd5 $2 24. Rxe8+ Kf7 25. Nxb6 $18) 24. Qxc6 bxc6 25. Rac1 $17) 23... Qc6 {[%emt 0:01:32][%mdl 1024] Black has compensation.} 24. Ne4 {[%emt 0:01:56]} Bg7 {[%emt 0:00:14] This pair of bishops is nice.} 25. Rad1 {[%emt 0:06:33][%cal Ba1d1,Bd1b1,Bb1b7][%mdl 32] Dodges Bd5} Bf7 {[%emt 0:01:09][%cal Oa7a6]} (25... Bxa2 $5 26. g4 Bb3 $15) 26. h3 {[%emt 0:03:37][%cal Ob4b5] [#]} h6 {[%emt 0:01:52]} (26... a6 $1 $17 {[%cal Oh7h6]} 27. Re2 Be5) 27. a4 {[%emt 0:00:48]} a6 {[%emt 0:00:33]} (27... Bb3 $15 28. b5 Bxd1 29. bxc6 Bxf3 30. Nf6+ Kf7 (30... Bxf6 $2 31. Rxe8+ Kf7 32. c7 $18) 31. Nxe8 Bxc6 (31... Bxc3 $2 32. c7 $18) 32. Nxg7 Kxg7 (32... Nxg7 33. c4 $15)) 28. b5 $1 $11 {[%emt 0:01:50]} axb5 {[%emt 0:00:08]} 29. axb5 {[%emt 0:00:08]} Qxb5 {[%emt 0:00:50]} 30. Rb1 {[%emt 0:00:19]} (30. g4 $5 Qc6 (30... Nh4 31. Qxf7+ Kxf7 32. Nd6+ Kf6 33. Nxb5 $14) 31. gxf5 gxf5 (31... Bd5 $2 32. Rxd5 gxf5 33. Rxf5 $18) 32. Nd2 $16 (32. Qxf5 Bg6 $17)) 30... Qc6 {[%emt 0:00:11]} 31. Rxb7 $1 {[%emt 0:00:54]} Qe6 {[%emt 0:04:41]} (31... Qxb7 $2 32. Nf6+ Bxf6 33. Rxe8+ (33. Qxb7 $2 Rxe1+ 34. Kh2 Rf1 $19) 33... Bxe8 34. Qxb7 $18) (31... Nd6 $5 32. Rb8 (32. Nf6+ Bxf6 33. Qxc6 Rxe1+ 34. Kh2 Be5+ 35. f4 Bxf4+ 36. g3 Nxb7 $19) 32... Nxe4 33. Rxe8+ Qxe8 34. Rxe4 Qc6 $11) 32. Re2 {[%emt 0:01:16]} Kh8 {[%emt 0:01:07]} (32... Be5 $11 {keeps the balance.}) 33. g4 {[%emt 0:01:33] White is more active.} ({Better is} 33. Ng3 $16 Qf6 34. Rxe8+ Bxe8 35. Rb8) 33... Qd5 $15 {[%emt 0:00:19]} 34. Rxf7 {[%emt 0:01:00]} Nh4 {[%emt 0:00:56] [#]} (34... Qd1+ $1 $15 35. Kh2 Be5+ 36. Ng3 Qxe2 (36... Bxg3+ $2 37. Qxg3 Qxe2 38. gxf5 $18) 37. Qxe2 (37. Rxf5 $2 gxf5 38. Qxf5 Qe4 $19) 37... Bxg3+ 38. Kg2 Rxe2 39. gxf5 Kg8 (39... Bxf2 $2 40. Kf3 $19)) 35. Qe3 $1 $16 {[%emt 0:00:25][%cal Of7g7] Rxg7! would now be deadly.} Qxf7 {[%emt 0:00:10]} 36. Ng5 $1 {[%emt 0:00:31]} Rxe3 {[%emt 0:00:58]} ({Black should try} 36... hxg5 37. Qxe8+ Qxe8 38. Rxe8+ Kh7) 37. Nxf7+ {[%emt 0:00:06]} Kg8 {[%emt 0:00:09]} 38. Nxh6+ {[%emt 0:00:27]} Bxh6 {[%emt 0:00:16]} 39. fxe3 {[%emt 0:00:04]} Nf3+ {[%emt 0:00:23]} 40. Kf2 {[%emt 0:00:24]} Ng5 {[%emt 0:00:03]} (40... Ne5 $16 41. Ra2 Nc4) 41. Kg2 $18 {[%emt 0:50:12]} Kf7 {[%emt 0:50:11]} 42. h4 {[%emt 0:00:00]} Ne4 {[%emt 0:00:00] Prevents Rf2+} 43. c4 {[%emt 0:00:00][%cal Bc3c4,Bc4c5][%mdl 32]} Ke6 {[%emt 0:00:00]} 44. Kf3 {[%emt 0:00:00]} Nd6 {[%emt 0:00:00]} 45. c5 {[%emt 0:00:00]} Nf7 {[%emt 0:00:00]} 46. Ke4 {[%emt 0:00:00]} Ne5 {[%emt 0:00:00]} 47. g5 {[%emt 0:00:00]} Bf8 {[%emt 0:00:00]} 48. Rf2 {[%emt 0:00:00]} Be7 {[%emt 0:00:00]} 49. Kd4 $2 {[%emt 0:00:00]} (49. Rf4 $18) 49... Bxc5+ $11 {[%emt 0:00:00]} 50. Ke4 {[%emt 0:00:00]} (50. Kxc5 $2 {perishes.} Nd3+ 51. Kd4 Nxf2 $19) 50... Be7 {[%emt 0:00:00] Against Rf6+} 51. Ra2 {[%emt 0:00:00]} Nd7 {[%emt 0:00:00]} 52. Ra6+ {[%emt 0:00:00]} Bd6 {[%emt 0:00:00]} 53. Ra8 {[%emt 0:00:00]} Bf8 {[%emt 0:00:00]} 54. Ra1 {[%emt 0:00:00]} Nc5+ {[%emt 0:00:00]} 55. Kf4 {[%emt 0:00:00]} Nd3+ {[%emt 0:00:00]} 56. Kg4 {[%emt 0:00:00]} Ne5+ {[%emt 0:00:00]} 57. Kh3 {[%emt 0:00:00]} Bc5 {[%emt 0:00:00]} 58. e4 {[%emt 0:00:00]} Bd6 {[%emt 0:00:00]} 59. Ra7 {[%emt 0:00:00]} Nf7 {[%emt 0:00:56]} 60. Ra8 {[%emt 0:00:00]} Be7 {[%emt 0:02:05]} 61. Rg8 {[%emt 0:00:00]} Ne5 {[%emt 0:00:10]} 62. Ra8 {[%emt 0:00:00]} Nf7 {[%emt 0:01:42]} 63. Kg3 {[%emt 0:00:00]} Bd6+ {[%emt 0:00:46]} 64. Kg4 {[%emt 0:00:00]} Ne5+ {[%emt 0:00:06]} 65. Kh3 {[%emt 0:00:00]} Nf7 {[%emt 0:00:17]} 66. Ra6 {[%emt 0:00:00]} Ke5 {[%emt 0:00:50]} 67. Ra4 {[%emt 0:00:54]} Ke6 {[%emt 0:01:07]} 68. Ra5 {[%emt 0:01:42]} Be7 {[%emt 0:01:19]} 69. Ra1 {[%emt 0:00:57]} Nd6 {[%emt 0:00:39]} 70. Ra4 {[%emt 0:00:39]} Nf7 {[%emt 0:00:16]} 71. Ra5 {[%emt 0:00:34]} Ne5 {[%emt 0:01:38]} 72. Ra6+ {[%emt 0:00:19]} Bd6 {[%emt 0:01:07] [#]} 73. h5 $1 {[%emt 0:00:19]} gxh5 {[%emt 0:00:50]} 74. Kh4 {[%emt 0:00:07]} Nd3 $2 {[%emt 0:00:15][%mdl 8192]} (74... Ng6+ $11 75. Kxh5 Nf4+ 76. Kg4 (76. Kh6 Ke5 $14) 76... Ng6) 75. g6 $1 $18 {[%emt 0:01:24][%cal Bg5g6,Bg6g7][%mdl 32] White threatens g7! and mate.} ({Weaker is} 75. Kxh5 Nc5 76. Ra7 Nxe4 $11) 75... Ne5 {[%emt 0:04:07]} 76. g7 {[%emt 0:00:23]} Ng6+ {[%emt 0:00:56]} 77. Kxh5 {[%emt 0:00:04] White mates.} Ne7 {[%emt 0:00:02]} 78. Ra7 {[%emt 0:00:40]} Ng8 {[%emt 0:00:34]} 79. Kg6 {[%emt 0:00:18]} Be5 {[%emt 0:00:14]} 80. Ra6+ {[%emt 0:00:31]} Ke7 {[%emt 0:00:02]} 81. Kh7 {[%emt 0:00:06] What a fight!   Weighted Error Value: White=0.26 (precise) /Black=0.32  Loses game:     	---       	Black=1      Missed win:     	White=1     	---        Mistake:       	White=6     	Black=9      Inaccurate:     	White=4     	Black=4      OK:         	White=16    	Black=22     Best:        	White=3     	Black=5      Strong:       	White=6     	---        Brilliant:      	---       	Black=1} 1-0

[Event "4NCL Div 1 2024-25"]
[Site "England"]
[Date "2025.01.25"]
[Round "3.33"]
[White "Hebden, Mark L"]
[Black "Parker, Jonathan F"]
[Result "1-0"]
[Annotator "TA"]
[ECO "D03"]
[WhiteElo "2372"]
[BlackElo "2523"]
[PlyCount "87"]
[EventDate "2024.11.23"]
[EventType "team-tourn"]
[EventCountry "ENG"]
[SourceTitle "playchess.com"]
[Source "ChessBase"]
[SourceQuality "1"]
[TimeControl "40/6000+30:3000+30"]

{[%evp 20,87,-9,-2,-10,-5,0,-3,-3,-16,13,0,0,-14,0,-13,-8,-14,-11,-25,-14,-23,-8,-8,-11,-18,-5,-7,10,0,29,22,29,37,62,45,45,22,41,11,18,17,104,97,160,151,153,145,141,148,160,154,170,166,271,267,400,430,564,567,562,551,495,492,808,734,639,720,784,763]} 1. d4 {[%emt 0:10:11]} Nf6 {[%emt 0:10:07]} 2. Nf3 {[%emt 0:01:11]} e6 {[%emt 0:02:01]} 3. Bg5 {[%emt 0:02:13]} h6 {[%emt 0:00:51]} 4. Bh4 {[%emt 0:02:09]} c5 {[%emt 0:01:28]} 5. e3 {[%emt 0:00:36]} Be7 {[%emt 0:04:35]} 6. c3 {[%emt 0:02:04]} b6 {[%emt 0:00:07]} 7. Nbd2 {[%emt 0:02:47]} O-O {[%emt 0:00:39]} 8. Rc1 {[%emt 0:02:20]} Bb7 {[%emt 0:04:39]} 9. Bd3 {[%emt 0:00:39]} d5 {[%emt 0:13:16]} 10. O-O {[%emt 0:06:02]} Nbd7 {[%emt 0:01:18]} 11. Qe2 {[%emt 0:01:42]} Ne4 {[%emt 0:05:52] Strongly threatening ...Nxd2. D03: 1 d4 d5 2 Nf3 Nf6 3 Bg5, including Torre Attack with early ...d5.} 12. Bxe7 {[%emt 0:00:45]} Qxe7 {[%emt 0:00:03]} 13. Rfd1 {[%emt 0:03:00]} Rfd8 $146 {[%emt 0:04:44] The position is equal.} (13... Rac8 14. Ba6 Nxd2 15. Nxd2 Nf6 16. f3 Bxa6 17. Qxa6 Rc7 18. Qd3 Rfc8 19. a3 e5 {½-½ Lapo,S (1760)-Zivkovic,M (1971) Lukavac op 8th 2019 (5)}) 14. Ne5 {[%emt 0:08:05]} Ndf6 {[%emt 0:02:40]} 15. Bb1 {[%emt 0:06:56]} Rac8 {[%emt 0:13:38]} 16. Nf1 {[%emt 0:01:33]} a6 {[%emt 0:00:39]} 17. f3 {[%emt 0:01:18] The position is symmetric and equal} Nd6 {[%emt 0:03:27]} 18. g4 {[%emt 0:00:40]} Nd7 {[%emt 0:01:13]} 19. Ng3 {[%emt 0:09:31]} Nf8 {[%emt 0:05:46]} 20. Re1 {[%emt 0:04:22]} Rc7 {[%emt 0:07:28]} 21. Rcd1 {[%emt 0:00:25]} a5 {[%emt 0:07:35]} 22. Qf2 {[%emt 0:01:44]} Qe8 {[%emt 0:03:23]} 23. f4 {[%emt 0:01:25]} f6 {[%emt 0:00:41][%cal Bf7f6,Bf6f5][%mdl 32]} 24. Nf3 {[%emt 0:00:06]} Rf7 {[%emt 0:02:28]} 25. h4 {[%emt 0:01:01]} Ne4 {[%emt 0:02:36]} 26. Qg2 {[%emt 0:00:41]} Nh7 {[%emt 0:05:12]} 27. Nd2 {[%emt 0:01:32]} f5 {[%emt 0:00:53]} 28. g5 {[%emt 0:00:27]} hxg5 {[%emt 0:01:35]} 29. hxg5 {[%emt 0:00:15]} Nf8 {[%emt 0:00:08]} 30. Nf3 {[%emt 0:01:30]} g6 {[%emt 0:00:24]} (30... cxd4 $11 {remains equal.} 31. Rxd4 Ng6) 31. Ne5 $16 {[%emt 0:02:24]} Rh7 {[%emt 0:00:04]} (31... Rc7 $142) 32. Bxe4 {[%emt 0:00:51][%csl Oe5] Strong Square White (e5)} dxe4 {[%emt 0:00:04]} 33. dxc5 {[%emt 0:01:39] White is more active.} bxc5 {[%emt 0:00:05]} 34. Rxd8 {[%emt 0:00:31]} Qxd8 {[%emt 0:00:03]} 35. Qe2 $1 {[%emt 0:01:13]} Qc8 {[%emt 0:05:58] [#]} 36. Rd1 {[%emt 0:00:39]} Ba6 {[%emt 0:00:04] [#]} (36... Bc6 $142 37. Qd2 Be8) 37. c4 $1 $18 {[%emt 0:01:38]} a4 {[%emt 0:00:06]} (37... Nd7 $142 38. Rd6 (38. Nxg6 Qe8 $16) 38... Nxe5 39. fxe5 Rd7) 38. Rd6 {[%emt 0:02:20]} a3 {[%emt 0:00:41] White is clearly winning.} 39. b3 {[%emt 0:00:49]} Bb7 {[%emt 0:00:31]} 40. Qd2 {[%emt 0:00:45] Black must now prevent Rd8.} Qc7 {[%emt 0:00:13]} 41. Rd8 {[%emt 0:53:44]} Kg7 {[%emt 0:50:59]} (41... Rg7 $142 42. Ne2 Bc8) 42. Qd6 {[%emt 0:01:31]} Qxd6 {[%emt 0:01:11]} 43. Rxd6 {[%emt 0:00:06]} Rh8 {[%emt 0:00:27]} 44. Rd8 {[%emt 0:00:58] Weighted Error Value: White=0.07 (flawless) /Black=0.47  Mistake:       	---       	Black=5      Inaccurate:     	White=1     	Black=3      OK:         	White=14    	Black=8      Best:        	White=2     	---        Strong:       	White=2     	---} 1-0